Cogmind - Beta 10.1 @@@ ROGUE MODE // 2020.10.01 @ 21:07:28 Player: TheGreatBorealis Result: Self-destructed Performance ------------- Evolutions (1) 500 Regions Visited (3) 600 Robots Destroyed (16) 80 Value Destroyed (386) 386 Prototype IDs (0) 0 Alien Tech Used (0) 0 Bonus (0) 0 TOTAL SCORE: 1566 Bonus ------- None Cogmind --------- Core Integrity 17/400 Matter 300/300 Energy 81/100 System Corruption 0% Temperature Cool (0) Movement Walking (120) Location -9/Mines Parts ------- > --- POWER (1) -------- (None) > --- PROPULSION (4) --- Aluminum Leg Aluminum Leg Flight Unit > --- UTILITY (2) ------ (None) > --- WEAPON (2) ------- Makeshift Hammer > --- INVENTORY (4) ---- Light Treads Aluminum Leg Small Storage Unit Peak State ------------ > --- POWER ------------ Ion Engine > --- PROPULSION ------- Aluminum Leg Aluminum Leg Wheel Wheel > --- UTILITY ---------- Small Storage Unit > --- WEAPON ----------- Rocket Launcher Makeshift Hammer > --- INVENTORY -------- Light Treads Aluminum Leg [Rating: 12] Favorites ----------- Power Light Ion Engine Engine Light Ion Engine Propulsion Wheel Leg Aluminum Leg Wheel Wheel Flight Unit Flight Unit Utility Small Storage Unit Storage Small Storage Unit Weapon Makeshift Hammer Energy Gun Small Laser Ballistic Gun Assault Rifle Launcher Rocket Launcher Impact Weapon Makeshift Hammer Build | -11 -10 -9 -9 ------- Run | Scr Mat Mat Min Slots Evolved 2 | . . 2 . Power . | . . . . Propulsion 2 | . . 2 . Utility . | . . . . Weapon . | . . . . Parts Attached 19 | 7 . 3 9 Power 2 | 1 . . 1 Engine 2 | 1 . . 1 Core . | . . . . Reactor . | . . . . Propulsion 10 | 2 . 1 7 Treads . | . . . . Leg 4 | . . . 4 Wheel 4 | 2 . 1 1 Hover . | . . . . Flight 2 | . . . 2 Utility 1 | 1 . . . Device . | . . . . Storage 1 | 1 . . . Processor . | . . . . Hackware . | . . . . Protection . | . . . . Artifact . | . . . . Weapon 6 | 3 . 2 1 Energy Gun 2 | 1 . 1 . Energy Cannon . | . . . . Ballistic Gun 2 | 2 . . . Ballistic Cannon . | . . . . Launcher 1 | . . 1 . Special Weapon . | . . . . Impact Weapon 1 | . . . 1 Slashing Weapon . | . . . . Piercing Weapon . | . . . . Special Melee Weapon . | . . . . Unidentified Prototypes . | . . . . Parts Lost 13 | . 1 5 7 Power 2 | . . 1 1 Propulsion 7 | . . 2 5 Utility . | . . . . Weapon 4 | . 1 2 1 Highest Loss Streak 5 | . 1 5 4 Average Slot Usage (%) 60 | . 80 46 55 Engine 7 | . 14 8 5 Leg 6 | . . . 10 Wheel 16 | . 28 13 11 Flight 1 | . . . 2 Storage 10 | . 14 11 9 Ballistic Gun 6 | . 23 8 . Launcher 4 | . . 1 7 Impact Weapon 5 | . . . 8 Naked Turns . | . . . . Heaviest Build 16 | 10 10 10 16 Greatest Support 20 | 20 20 20 20 Greatest Overweight (x) 2 | . . 2 2 Average Overweight (x) . | . . . . Largest Inventory Capacity 6 | 6 6 6 6 Average Capacity 5 | 5 6 6 5 Most Carried 6 | 6 6 6 4 Average Carried 4 | 3 5 5 3 Final Capacity 6 | 6 6 6 4 Final Carried 6 | 6 6 4 3 Class Distribution -------------------- 100% | Mutant Dominant Class ---------------- Mutant | -10/Materials Mutant | -9/Materials Mutant | -9/Mines Resources | -11 -10 -9 -9 ----------- Run | Scr Mat Mat Min Matter Collected 461 | 225 85 . 151 Remotely . | . . . . Salvage Created 480 | . 87 109 284 Parts 20 | . 6 5 9 Haulers Intercepted . | . . . . Recyclers Shooed . | . . . . Parts Field Recycled . | . . . . Retrieved Matter . | . . . . Parts Self-Destructed . | . . . . Prevented . | . . . . Kills | -11 -10 -9 -9 ------- Run | Scr Mat Mat Min Combat Hostiles Destroyed 15 | . 2 2 11 Melee 6 | . . . 6 Guns 3 | . 2 1 . AOE 1 | . . 1 . Classes Destroyed 4 | . 1 2 1 Tunneler 1 | . . 1 . Swarmer 7 | . . . 7 Grunt 7 | . 2 1 4 Sentry 1 | . . 1 . Best Kill Streak 6 | . 2 2 6 Combat Bots Only 6 | . 2 1 6 Max Kills in Single Turn 2 | . 1 2 1 Gunslinging . | . . . . Exploded 1 | . . 1 . Melee 1 | . . . 1 Uniques/NPCs Destroyed . | . . . . Combat | -11 -10 -9 -9 -------- Run | Scr Mat Mat Min Damage Taken 1362 | . 277 315 770 Core 442 | . 59 84 299 Absorbed by Shields . | . . . . Core Remaining (%) 88 | 100 76 . . Volleys Fired 28 | . 13 15 . Largest 2 | . 2 2 . Hottest 60 | . 40 60 . Shots Fired 39 | . 19 20 . Gun 37 | . 19 18 . Cannon . | . . . . Launcher 2 | . . 2 . Special . | . . . . Kinetic 32 | . 19 13 . Thermal 5 | . . 5 . Explosive 2 | . . 2 . Electromagnetic . | . . . . Robot Hit Streak 8 | . 5 8 . Robot Miss Streak 4 | . 4 2 . Penetration Max . | . . . . Secondary Targets . | . . . . Shots Hit Robots 51 | . 11 15 25 Core Hits 16 | . 4 5 7 Critical Hits . | . . . . Critical Kills . | . . . . Critical Parts Destroyed . | . . . . Melee Attacks 57 | . . . 57 Impact 57 | . . . 57 Slashing . | . . . . Piercing . | . . . . Sneak Attacks . | . . . . Combat Hostiles . | . . . . Follow-up Attacks . | . . . . Damage Inflicted 1195 | . 151 273 771 Guns 302 | . 151 151 . Cannons . | . . . . Explosions 122 | . . 122 . Melee 771 | . . . 771 Ramming . | . . . . Kinetic 269 | . 151 118 . Thermal 33 | . . 33 . Explosive 122 | . . 122 . Electromagnetic . | . . . . Impact 771 | . . . 771 Slashing . | . . . . Piercing . | . . . . Highest Corruption . | . . . . Average Corruption . | . . . . Corruption Purged . | . . . . Overload Shots . | . . . . Overflow Damage 98 | . . 6 92 Projectiles . | . . . . Explosions 6 | . . 6 . Melee 92 | . . . 92 Knockbacks 3 | . . . 3 Impact 3 | . . . 3 Kinetic . | . . . . Secondary . | . . . . Self-Inflicted Damage 44 | . . 44 . Shots 1 | . . 1 . Rammed . | . . . . Targets Rammed . | . . . . Kicked . | . . . . Crushed . | . . . . Highest Temperature 19 | . 19 3 . Average Temperature 7 | . 9 3 . Received Heat Transfer 501 | . 159 93 249 Siege Activations . | . . . . Robots Corrupted . | . . . . Combat Hostiles . | . . . . Parts Fried 5 | . . . 5 Impact Corruptions 9 | . . . 9 Robots Melted . | . . . . Combat Hostiles . | . . . . Parts Melted . | . . . . Heat Transferred 75 | . . 75 . Parts Sabotaged . | . . . . Parts Stolen . | . . . . Parts Stripped . | . . . . Power Chain Reactions . | . . . . Missiles Intercepted . | . . . . Alert | -11 -10 -9 -9 ------- Run | Scr Mat Mat Min Peak Influence 205 | . 50 45 205 Initial 20 | . . 20 15 Average 51 | . 16 28 81 Maximum Alert Level 1 | . . . 1 Low Security (%) 96 | 100 100 100 93 Level 1 3 | . . . 6 Level 2 . | . . . . Level 3 . | . . . . Level 4 . | . . . . Level 5 . | . . . . High Security . | . . . . Max Security . | . . . . Squads Dispatched . | . . . . Investigation . | . . . . Extermination . | . . . . Reinforcement . | . . . . Assault . | . . . . Garrison . | . . . . Intercept . | . . . . Construction Impeded . | . . . . Haulers Reinforced . | . . . . Stealth | -11 -10 -9 -9 --------- Run | Scr Mat Mat Min Distress Signals 1 | . . 1 . Communications Jammed . | . . . . Distress Signals . | . . . . Times Spotted 29 | . 3 3 23 Peak Tracking Total 8 | . 3 2 8 Tactical Retreats 5 | . . . 5 Traps | -11 -10 -9 -9 ------- Run | Scr Mat Mat Min Traps Triggered . | . . . . Indirectly . | . . . . Trap Hack Attempts . | . . . . Triggered . | . . . . Disarmed . | . . . . Reprogrammed . | . . . . Reused . | . . . . Traps Extracted . | . . . . Installed . | . . . . Triggered . | . . . . Machines | -11 -10 -9 -9 ---------- Run | Scr Mat Mat Min Machines Disabled . | . . . . Max in Single Turn . | . . . . Machines Sabotaged . | . . . . Garrisons Compromised . | . . . . Overloaded Fab Kills . | . . . . Fab Network Shutdowns . | . . . . Hacking | -11 -10 -9 -9 --------- Run | Scr Mat Mat Min Machines Accessed 2 | . 2 . . Terminals 2 | . 2 . . Fabricators . | . . . . Repair Stations . | . . . . Recycling Units . | . . . . Scanalyzers . | . . . . Garrison Access . | . . . . Total Hacks 4 | . 4 . . Successful 1 | . 1 . . Failed 3 | . 3 . . Catastrophic . | . . . . Database Lockouts . | . . . . Manual 2 | . 2 . . Terminals 4 | . 4 . . Fabricators . | . . . . Repair Stations . | . . . . Recycling Units . | . . . . Scanalyzers . | . . . . Garrison Access . | . . . . Terminal Hacks 1 | . 1 . . Zone Layout 1 | . 1 . . Fabricator Hacks . | . . . . Repair Station Hacks . | . . . . Recycling Unit Hacks . | . . . . Scanalyzer . | . . . . Garrison Access Hacks . | . . . . Unauthorized Hacks . | . . . . Terminals . | . . . . Fabricators . | . . . . Repair Stations . | . . . . Recycling Units . | . . . . Scanalyzers . | . . . . Garrison Access . | . . . . Data Cores Recovered . | . . . . Used . | . . . . Hacking Detections 2 | . 2 . . Full Trace Events . | . . . . Feedback Events . | . . . . Feedback Blocked . | . . . . Robot Schematics Acquired . | . . . . Robots Built . | . . . . Matter . | . . . . Time . | . . . . Total Robot Build Rating . | . . . . Part Schematics Acquired . | . . . . Parts Built . | . . . . Matter . | . . . . Time . | . . . . Total Part Build Rating . | . . . . Parts Repaired . | . . . . Time . | . . . . Parts Recycled . | . . . . Recycled Matter . | . . . . Retrieved Matter . | . . . . Retrieved Components . | . . . . Parts Scanalyzed . | . . . . Part Schematics Acquired . | . . . . Parts Damaged . | . . . . Bothacking | -11 -10 -9 -9 ------------ Run | Scr Mat Mat Min Used RIF Installer . | . . . . Robots Hacked . | . . . . Non-combat . | . . . . Combat . | . . . . Robot Hacks Applied . | . . . . Relay Couplers Released . | . . . . Robots Rewired . | . . . . Allies Hacked . | . . . . Hacks Repelled . | . . . . Allies | -11 -10 -9 -9 -------- Run | Scr Mat Mat Min Total Allies . | . . . . Largest Group . | . . . . Highest-Rated Group . | . . . . Highest-Rated Ally . | . . . . Total Orders . | . . . . Ally Attacks . | . . . . Total Damage . | . . . . Kills . | . . . . Allies Corrupted . | . . . . Allies Melted . | . . . . Intel | -11 -10 -9 -9 ------- Run | Scr Mat Mat Min Robot Analysis Total . | . . . . Derelict Logs Recovered 1 | . . . 1 Drone Launches . | . . . . Drone Recoveries . | . . . . Exploration | -11 -10 -9 -9 ------------- Run | Scr Mat Mat Min Turns Passed 619 | 67 135 85 332 Spaces Moved 470 | 49 129 42 250 Core 14 | 3 . 11 . Treads . | . . . . Legs 11 | . . . 11 Wheels 417 | 46 129 31 211 Hover . | . . . . Flight 28 | . . . 28 Fastest Speed 37 | 50 80 80 37 Average Speed 81 | 78 80 94 79 Slowest Speed 220 | 80 80 150 220 Overloaded Moves . | . . . . Propulsion Burnouts . | . . . . Robots Hopped . | . . . . Cave-ins Triggered . | . . . . Exploration Rate (%) 17 | 4 30 9 27 Regions Visited 3 Branch Regions 1 Pre-discovered Areas . | . . . . Known Exits Taken . | . . . . Unknown Exits Taken 3 | 1 1 1 . Scrap Searched . | . . . . Spaces Dug . | . . . . Terrain Destroyed 26 | . . 26 . Melee . | . . . . Projectile . | . . . . AOE 26 | . . 26 . Terrain Rammed . | . . . . Walls Destroyed . | . . . . Machines Disabled . | . . . . Actions | -11 -10 -9 -9 --------- Run | Scr Mat Mat Min Total 604 | 73 143 66 322 Wait 23 | 12 . 7 4 Move 467 | 48 128 41 250 Hop . | . . . . Pick Up 8 | 6 1 . 1 Fast Attach 13 | 6 . 1 6 Attach 5 | . . 2 3 Detach 1 | . . . 1 Swap 1 | 1 . . . Drop 1 | . 1 . . Fire 28 | . 13 15 . Melee 57 | . . . 57 Ram . | . . . . Kick . | . . . . Crush . | . . . . Escape Stasis . | . . . . Rewire . | . . . . Trap . | . . . . Miscellaneous . | . . . . Route ------- -11/Scrapyard -10/Materials -9/Materials -9/Mines (discovered 2 exits: [*Mat] / Exi) History --------- Turn | Location | Event 2 | -11/Scrapyard | Discovered new exit (range 16) 68 | -11/Scrapyard | Entered Materials 180 | -10/Materials | Discovered new exit (range 5) 203 | -10/Materials | Entered another Materials area 203 | -9/Materials | Evolved 2 slots: Propulsion x2 247 | -9/Materials | Discovered new exit (range 13) 288 | -9/Materials | Entered Mines 297 | -9/Mines | Lost 5 parts (1p2n2w) 304 | -9/Mines | Build established: Mutant 352 | -9/Mines | A weapon hastily lodged in a ceiling crevice suddenly fell to the ground 470 | -9/Mines | Identified exit to Exiles 482 | -9/Mines | Discovered new exit (range 9) 492 | -9/Mines | Core integrity fell below 50% 556 | -9/Mines | Lost 3 parts (2n1w) 590 | -9/Mines | Core integrity fell below 20% 620 | -9/Mines | Self-destructed Last Messages --------------- 00553_ Flight Unit fried. 00553_ S-10 Pest destroyed. 00555_ G-34 Mercenary knocked back. 00563_ G-34 Mercenary destroyed. 00568_ Acquired Flight Unit. 00569_ Acquired 10 matter. 00570_ R-06 Scavenger collects Aluminum Leg. 00573_ Acquired Flight Unit. 00576_ Acquired 7 matter. 00577_ Acquired 3 matter. 00586_ Aluminum Leg destroyed. 00589_ G-47 Trooper knocked back. 00591_ Aluminum Leg destroyed. 00593_ Ion Engine destroyed. 00598_ G-47 Trooper destroyed. 00602_ G-34 Mercenary knocked back. 00604_ Flight Unit destroyed. 00609_ G-34 Mercenary destroyed. 00612_ Acquired Aluminum Leg. 00618_ Acquired 20 matter. Map ----- +----------------------------------------------------+ | #????????????????# ## #??? | | #????????????????# #??? | | #???????????????## ##??? | | #??????????????## ##???? | | ##########?????# ##???? | | ##????# #???? | | ! #????## #### #???? | | ##### |##????####???### #???? | | ##???## ! ##????????????## #???? | | ??????## ############### #???? | | ???????# % %## #???? | | ???????# ############ ## #???? | | ???????## ##??????????# ## #???? | | ????????# ##???????????# ## #???? | | ????????# #????????????# ## #???? | | ????????# #??????????### ## #???? | | ????##### ########???# #???? | | ????# #???# ######???? | | ???# ######## ##### ########?? | | ???# ???????# # #?? | | ???# ????????# ####### """" #?? | | ???# ?????????# ####??# """" #?? | | ??# ??????????# #??# """" #?? | | ? ??????????####%#??# #?? | | ####??????????????#%####%! < #?? | | ??????????????????#%%% *@ #?? | | ??????????????????######% #?? | | ???????????????????????## #####?? | | ????????????????######### #?????? | | ??????????????# s#?????? | | ????????????????###########?????? | | ????????????????????????????????? | | ????????????????????????????????? | | ????????????????????????????????? | | ????????????????????????????????? | | ????????????????????????????????? | | ????????????????????????????????? | | ????????????????????????????????? | | ????????????????????????????????? | | ????????????????????????????????? | | ????????????????????????????????? | | ????????????????????????????????? | | ????????????????????????????????? | | ????????????????????????????????? | | ????????????????????????????????? | | ????????????????????????????????? | | ????????????????????????????????? | | ????????????????????????????????? | | ????????????????????????????????? | | ????????????????????????????????? | +----------------------------------------------------+ Best States ------------- Heat Dissipation 28 Energy Generation 10 Energy Capacity 250 Matter Stores 300 Matter Capacity 300 Sight Range 16 Terrain Scan Density 10 Evasion (%) 62 Item Schematics ----------------- None Robot Schematics ------------------ None Fabricated ------------ Nothing Alien Tech Used ----------------- None Achievements -------------- None Challenges ------------ None Game ------ Seed HeartWeaponCycler Manual? 0 Play Time 00:06:51 Cumulative 45.2 hours Start 2020.10.01 @ 20:03:11 End 2020.10.01 @ 21:07:28 Sessions 3 Manual Loads 0 Difficulty Rogue Special Mode None Game No. 91 Rogue 91 Adventurer 0 Explorer 0 Win Type - Total 0 Types 0/0/0/0/0/0/0/0/0 Lore% 28 Gallery% 41 Achievement% 31 Wizard Run 0 Options --------- ASCII 0 Keyboard 1 Movement Numpad Keybinds 0 Fullscreen 2 Font 18/Terminus Map View 76x50 Tactical HUD 1 Map Filters NONE Filters NONE Steam 1 RUN: 18166c93-a8ba-45cd-8818-7edf56b0b14d